bitfinex/quotes_SOLUSD_20251106
["timestamp","ask_amount","ask_price","bid_price","bid_amount"]
[1762457721676,17.26882769,157.12,157.09,15.04152492]
[1762457722001,17.26882769,157.12,157.1,0.72]
[1762457722376,7.48,157.12,157.1,0.72]
[1762457723583,7.48,157.12,157.1,7.08511288]
[1762457723781,7.48,157.12,157.09,7.95613613]
[1762457723782,7.48,157.12,157.08,7.95613613]
[1762457723973,9.78882769,157.08,157.04,0.7]
[1762457724180,17.74496382,157.08,157.05,0.7]
[1762457724596,7.48,157.09,157.05,0.7]
[1762457724597,25.22496382,157.07,157.05,0.7]
[1762457725483,25.22496382,157.07,157.04,6.36780438]
[1762457725677,102.9,157.1,157.05,8.65613613]
[1762457725896,110.38,157.1,157.05,0.7]
[1762457726102,17.74496382,157.06,157.03,0.2]
[1762457726294,17.74496382,157.05,157.03,0.9]
[1762457726487,7.95613613,157.08,157.03,0.9]
[1762457726694,7.48,157.07,157.04,0.7]
[1762457727618,7.48,157.07,157.03,0.2]
[1762457727619,17.74496382,157.06,157.03,0.2]
[1762457727819,7.48,157.05,157.03,0.9]
[1762457727982,15.43613613,157.05,157.03,0.2]
[1762457728486,7.48,157.05,157.03,0.9]
[1762457728692,7.48,157.05,157.04,0.7]
[1762457728884,7.48,157.07,157.04,0.7]
[1762457729210,9.78882769,157.06,157.03,0.2]
[1762457729394,7.48,157.05,157.03,0.9]
[1762457729797,7.48,157.05,157.03,7.26819966]
[1762457729984,17.26882769,157.07,157.04,0.7]
[1762457731908,7.48,157.07,157.04,10.44340761]
[1762457732106,7.48,157.07,157.04,7.06775657]
[1762457732290,7.48,157.07,157.05,0.7]
[1762457732706,13.84676197,157.07,157.05,0.7]
[1762457732899,13.16447873,157.06,157.03,0.2]
[1762457733089,9.78882769,157.06,157.04,0.7]
[1762457733790,9.78882769,157.06,157.03,0.2]
[1762457733990,16.15591014,157.06,157.03,0.9]
[1762457734798,9.78882769,157.06,157.04,0.7]
[1762457735199,7.48,157.06,157.04,0.7]
[1762457735501,7.48,157.06,157.04,7.06766196]
[1762457735824,9.78882769,157.09,157.05,3.37565104]
[1762457736020,9.78882769,157.09,157.06,0.7]
[1762457736889,9.78882769,157.09,157.06,4.07565104]
[1762457737089,7.48,157.1,157.06,4.07565104]
[1762457737285,13.84537696,157.1,157.07,0.71]
[1762457737491,17.881028,157.1,157.06,0.71]
[1762457737690,9.78882769,157.09,157.06,0.71]
[1762457737909,7.48,157.1,157.06,4.08565104]
[1762457738188,7.48,157.1,157.05,0.71]
[1762457738189,13.16447873,157.09,157.05,0.71]
[1762457738393,10.85565104,157.08,157.03,9.94379767]
[1762457738614,7.48,157.08,157.06,0.71]
[1762457739025,9.78882769,157.09,157.06,4.08565104]
[1762457739513,9.78882769,157.09,157.07,0.71]
[1762457739817,7.48,157.08,157.05,0.71]
[1762457741097,9.78882769,157.07,157.03,9.94385628]
[1762457741313,9.78882769,157.07,157.04,0.71]
[1762457741694,16.15553037,157.07,157.04,0.71]
[1762457741892,7.48,157.08,157.04,10.45335001]
[1762457742522,7.48,157.08,157.05,0.71]
[1762457744097,7.48,157.08,157.05,10.45303594]
[1762457744606,120.16882769,157.09,157.06,0.71]
[1762457745422,9.78882769,157.08,157.06,0.71]
[1762457746008,16.15514238,157.08,157.04,10.45341648]
[1762457746200,9.78882769,157.08,157.04,10.45341648]
[1762457746400,9.78882769,157.08,157.05,0.71]
[1762457746600,9.78882769,157.08,157.05,4.08565104]
[1762457746818,110.38,157.09,157.05,4.08565104]
[1762457747009,110.38,157.09,157.06,0.71]
[1762457748406,9.78882769,157.08,157.06,0.71]
[1762457750017,9.78882769,157.08,157.05,6.36726233]
[1762457750220,9.78882769,157.08,157.05,7.07726233]
[1762457750923,9.78882769,157.08,157.05,6.36726233]
[1762457751125,9.78882769,157.08,157.06,0.71]
[1762457752333,9.78882769,157.08,157.05,6.36726233]
[1762457752537,9.78882769,157.08,157.05,7.03726233]
[1762457752925,9.78882769,157.08,157.05,6.36726233]
[1762457753125,16.15505131,157.08,157.05,0.67]
[1762457753340,3.37565104,157.06,157.03,0.2]
[1762457753624,33.75647873,157.04,157.03,0.2]
[1762457754011,34.44647873,157.04,157.03,0.2]
[1762457754706,9.78882769,157.04,157.03,0.2]
[1762457755538,13.16447873,157.04,157.03,0.2]
[1762457756315,19.53228311,157.04,157.03,0.2]
[1762457756522,13.16447873,157.04,157.03,0.2]
[1762457757050,27.01228311,157.04,157.03,0.2]
[1762457757444,27.70228311,157.04,157.03,0.2]
[1762457758445,17.26882769,157.04,157.03,0.2]
[1762457758629,25.79845582,157.04,157.03,0.2]
[1762457759233,26.48845582,157.04,157.03,0.2]
[1762457761129,9.78882769,157.02,157.01,0.2]
[1762457761323,40.81872837,157.02,157.01,0.2]
[1762457761637,41.50872837,157.02,157.01,0.2]
[1762457762262,39.34690462,157.02,157.01,0.2]
[1762457762565,38.9112669,157.02,157.01,0.2]
[1762457762860,37.86082769,157.02,157.01,0.2]
[1762457763255,44.22944315,157.02,157.01,0.2]
[1762457763553,23.63744315,157.02,157.01,0.2]
[1762457763743,17.26882769,157.02,157.01,0.2]
[1762457764547,17.26882769,157.02,157.01,0.87]
[1762457765027,102.9,157.09,157.01,9.40084483]
[1762457765230,7.05548948,157.1,157.05,2.16182375]
[1762457765438,7.48,157.09,157.06,2.16182375]
[1762457765628,7.48,157.09,157.06,2.83182375]
[1762457765841,7.48,157.09,157.06,0.67]
[1762457766045,9.78882769,157.08,157.06,0.67]
[1762457766246,9.78882769,157.08,157.04,2.16182375]
[1762457766448,7.48,157.07,157.04,2.16182375]
[1762457766631,7.48,157.07,157.05,9.19922266]
[1762457767057,0.69,157.11,157.06,0.67]
[1762457767240,25.79612981,157.1,157.06,0.67]
[1762457767631,26.48612981,157.1,157.05,2.16182375]
[1762457767946,26.48612981,157.1,157.05,2.83182375]
[1762457768365,17.26882769,157.1,157.06,2.83182375]
[1762457768739,9.78882769,157.1,157.07,7.03658814]
[1762457769056,17.26882769,157.1,157.07,7.03658814]
[1762457769458,11.95065144,157.12,157.08,0.67]
[1762457769764,9.78882769,157.1,157.07,8.52841189]
[1762457769961,9.78882769,157.1,157.07,7.03658814]
[1762457770136,12.64065144,157.1,157.06,6.36685629]
[1762457770461,12.64065144,157.1,157.06,7.03685629]
[1762457770772,9.64182375,157.09,157.05,6.36725304]
[1762457770940,7.48,157.09,157.05,8.52907679]
[1762457771140,7.48,157.09,157.06,0.67]
[1762457772045,16.15423503,157.1,157.06,0.67]
[1762457772461,7.48,157.09,157.06,0.67]
[1762457772863,7.48,157.09,157.06,9.19841425]
[1762457773643,7.48,157.09,157.06,8.52841425]
[1762457773963,9.78882769,157.1,157.08,2.16182375]
[1762457774152,19.11254101,157.2,157.09,30.23382375]
[1762457774354,8.52349697,157.2,157.1,0.16133597]
[1762457774667,11.95065144,157.15,157.11,0.67]
[1762457774878,9.64182375,157.14,157.09,16.00748164]
[1762457775032,2.16182375,157.1,157.05,2.83182375]
[1762457775235,19.43065144,157.11,157.06,2.16182375]
[1762457775458,9.78882769,157.09,157.06,0.67]
[1762457775674,2.16182375,157.09,157.06,0.67]
[1762457776550,9.64182375,157.09,157.06,0.67]
[1762457776865,9.78882769,157.09,157.06,7.03696235]
[1762457777065,17.26882769,157.09,157.06,7.03696235]
[1762457777273,19.43065144,157.09,157.04,2.16182375]
[1762457777561,19.43065144,157.09,157.04,7.03771024]
[1762457777562,2.16182375,157.08,157.04,7.03771024]
[1762457777781,2.16182375,157.08,157.02,7.03847183]
[1762457777782,2.16182375,157.06,157.02,7.03847183]
[1762457777938,9.64182375,157.06,157.01,2.36182375]
[1762457778141,9.64182375,157.06,157.01,0.87]
[1762457778142,11.95065144,157.05,157.01,0.87]
[1762457778347,7.48,157.06,157.02,2.83182375]
[1762457778750,7.48,157.06,157.03,0.67]
[1762457778956,9.78882769,157.06,157.03,0.67]
[1762457779159,17.26882769,157.06,157.02,8.53016624]
[1762457779372,17.26882769,157.06,157.02,9.20016624]
[1762457779836,7.48,157.09,157.04,2.16182375]
[1762457780042,9.64182375,157.09,157.04,2.16182375]
[1762457780238,9.64182375,157.09,157.05,0.67]
[1762457780667,10.33182375,157.09,157.05,0.67]
[1762457780872,16.69767093,157.09,157.05,0.67]
[1762457781042,16.69767093,157.09,157.05,7.03735599]
[1762457781242,10.33182375,157.09,157.05,7.03735599]
[1762457782171,16.69762114,157.09,157.05,7.03735599]
[1762457782372,10.33182375,157.09,157.05,7.03735599]
[1762457782549,9.64182375,157.09,157.05,7.03735599]
[1762457782747,11.95065144,157.1,157.05,8.52917974]
[1762457782977,7.48,157.11,157.08,2.16182375]
[1762457783264,18.31466836,157.14,157.09,2.16182375]
[1762457783475,7.48,157.13,157.09,2.16182375]
[1762457783682,7.48,157.13,157.09,2.81182375]
[1762457784067,10.36182375,157.13,157.09,0.65]
[1762457784261,2.88182375,157.13,157.09,0.65]
[1762457784459,10.36182375,157.13,157.09,0.65]
[1762457784664,16.72599162,157.13,157.09,7.01554041]
[1762457785067,11.95065144,157.12,157.09,0.65]
[1762457785255,19.43065144,157.12,157.08,6.36613726]
[1762457785451,20.15065144,157.12,157.08,6.36613726]
[1762457786364,20.15065144,157.12,157.07,9.17826937]
[1762457786365,2.16182375,157.11,157.07,9.17826937]
[1762457786678,2.16182375,157.11,157.05,15.9181504]
[1762457786679,9.24700335,157.11,157.06,8.52873457]
[1762457787064,2.88182375,157.11,157.06,8.52873457]
[1762457787265,2.88182375,157.11,157.07,0.65]
[1762457788261,9.24688199,157.11,157.07,0.65]
[1762457788664,2.88182375,157.11,157.07,0.65]
[1762457788978,2.88182375,157.11,157.07,7.01653395]
[1762457789162,120.16882769,157.12,157.08,2.16182375]
[1762457789476,120.16882769,157.12,157.08,2.81182375]
[1762457789677,120.16882769,157.12,157.09,2.81182375]
[1762457790055,110.38,157.12,157.09,2.81182375]
[1762457790285,110.38,157.12,157.1,0.65]
[1762457790465,110.38,157.12,157.1,2.81182375]
[1762457790666,102.9,157.12,157.1,2.81182375]
[1762457791054,102.9,157.12,157.1,7.01522821]
[1762457791472,7.48,157.14,157.1,9.17705196]
[1762457792778,7.48,157.14,157.11,0.65]
[1762457792971,7.48,157.14,157.11,2.81182375]
[1762457793179,7.48,157.14,157.12,9.17638586]
[1762457793761,17.26882769,157.16,157.13,0.65]
[1762457793993,102.9,157.19,157.15,2.16182375]
[1762457794280,0.82,157.22,157.17,2.16182375]
[1762457794455,0.82,157.22,157.15,20.592]
[1762457794456,0.1,157.22,157.19,2.16182375]
[1762457794652,0.1,157.22,157.19,2.81182375]
[1762457794882,0.1,157.22,157.2,0.65]
[1762457795169,0.1,157.22,157.2,9.17283058]
[1762457796290,0.1,157.22,157.19,8.52342565]
[1762457796584,0.1,157.22,157.19,6.3616019]
[1762457796789,0.68,157.21,157.17,20.592]
[1762457797094,0.1,157.22,157.18,2.87182375]
[1762457797270,0.1,157.22,157.19,8.52355159]
[1762457797474,0.1,157.22,157.19,2.87182375]
[1762457797691,0.1,157.22,157.2,0.71]
[1762457798295,0.1,157.22,157.19,2.16182375]
[1762457798480,0.1,157.22,157.19,2.87182375]
[1762457798784,0.1,157.22,157.19,2.16182375]
[1762457798986,0.1,157.22,157.2,2.87182375]
[1762457799367,0.1,157.22,157.21,6.36091851]
[1762457799579,0.1,157.22,157.21,9.23274226]
[1762457800085,0.1,157.22,157.21,8.52274226]
[1762457800384,0.1,157.22,157.21,9.23274226]
[1762457801562,0.1,157.22,157.21,7.07091851]
[1762457801761,0.1,157.22,157.21,9.23274226]
[1762457803369,1e-08,157.22,157.21,9.39334922]
[1762457805185,0.1,157.26,157.25,26.95130047]
[1762457805386,1e-08,157.26,157.25,36.73330626]
[1762457805561,1e-08,157.26,157.25,37.44330626]
[1762457805761,1e-08,157.26,157.25,29.98330626]
[1762457805972,1e-08,157.26,157.25,37.28312422]
[1762457806689,1e-08,157.26,157.25,13.81930047]
[1762457807272,0.1,157.3,157.25,16.69112422]
[1762457807580,0.1,157.3,157.29,22.75382375]
[1762457807767,0.1,157.3,157.29,30.37360149]
[1762457807967,0.1,157.3,157.29,31.08360149]
[1762457808165,0.1,157.38,157.29,81.08360149]
[1762457808483,0.1,157.38,157.37,5.04160496]
[1762457808677,0.1,157.38,157.37,12.50160496]
[1762457809168,0.1,157.38,157.37,13.21160496]
[1762457809371,0.1,157.38,157.37,19.56605625]
[1762457810689,0.1,157.38,157.37,18.85605625]
[1762457811397,0.78,157.38,157.34,6.35537792]
[1762457811697,0.78,157.38,157.34,12.10698288]
[1762457811882,0.78,157.38,157.35,12.50160496]
[1762457812072,0.1,157.38,157.35,12.50160496]
[1762457812823,0.1,157.38,157.35,13.20160496]
[1762457813101,0.1,157.38,157.37,25.63360496]
[1762457813397,0.1,157.38,157.37,31.98805625]
[1762457813595,0.1,157.38,157.37,32.68805625]
[1762457815099,0.1,157.38,157.37,7.46]
[1762457815475,0.8,157.38,157.35,7.46]
[1762457815890,7.15407389,157.38,157.35,7.46]
[1762457816102,9.78882769,157.37,157.33,5.04160496]
[1762457816278,15.53043265,157.37,157.33,5.04160496]
[1762457816482,0.7,157.36,157.32,12.50160496]
[1762457817031,5.74160496,157.36,157.32,7.46]
[1762457817222,5.04160496,157.34,157.3,6.35718588]
[1762457817522,5.04160496,157.34,157.3,18.85881128]
[1762457817705,0.7,157.34,157.3,11.39881128]
[1762457817900,5.74160496,157.34,157.3,6.35720632]
[1762457818303,5.74160496,157.34,157.29,5.04160496]
[1762457818304,14.83043265,157.33,157.28,5.74160496]
[1762457818510,14.83043265,157.33,157.27,5.04160496]
[1762457818511,5.04160496,157.32,157.27,5.04160496]
[1762457818726,5.74160496,157.32,157.27,5.04160496]
[1762457818896,5.74160496,157.31,157.26,12.50160496]
[1762457819305,0.7,157.31,157.27,11.40003565]
[1762457819513,0.7,157.31,157.27,12.10003565]
[1762457819723,12.09848822,157.31,157.27,6.35843069]
[1762457820221,0.7,157.3,157.27,6.35843069]
[1762457820610,8.16,157.35,157.29,7.933347]
[1762457820805,8.16,157.35,157.3,7.933347]
[1762457820806,9.78882769,157.34,157.3,7.933347]
[1762457821304,10.48882769,157.34,157.3,7.933347]
[1762457821505,10.48882769,157.34,157.3,14.29047643]
[1762457821717,18.42217469,157.34,157.3,6.35712943]
[1762457822524,24.77786244,157.34,157.3,6.35712943]
[1762457823030,102.9,157.35,157.31,8.633347]
[1762457823503,102.9,157.35,157.32,7.933347]
[1762457823705,102.9,157.35,157.33,7.933347]
[1762457824404,102.9,157.35,157.34,7.933347]
[1762457824618,102.9,157.35,157.34,14.28900989]
[1762457825135,0.1,157.38,157.34,14.98900989]
[1762457825309,0.1,157.38,157.36,7.933347]
[1762457825506,0.1,157.38,157.37,8.633347]
[1762457826642,0.8,157.38,157.35,13.81501172]
[1762457827232,0.8,157.38,157.35,21.74835872]
[1762457828022,17.72217469,157.37,157.32,7.933347]
[1762457828227,7.933347,157.36,157.32,7.46]
[1762457828398,0.7,157.36,157.32,15.393347]
[1762457828603,9.78882769,157.37,157.34,6.35566289]
[1762457828803,17.72217469,157.35,157.27,0.7]
[1762457829042,7.933347,157.3,157.25,14.29264747]
[1762457829247,7.933347,157.3,157.09,31.65282398]
[1762457829248,7.933347,157.28,157.23,14.29331163]
[1762457829530,9.78882769,157.28,157.22,14.52040013]
[1762457829826,7.933347,157.26,157.22,13.82040013]
[1762457830005,7.933347,157.26,157.22,29.72168495]
[1762457830209,0.7,157.3,157.24,7.933347]
[1762457830412,7.933347,157.28,157.25,7.46]
[1762457830608,14.29237729,157.26,157.2,15.90319392]
[1762457830811,7.933347,157.26,157.21,15.393347]
[1762457831331,8.633347,157.25,157.21,7.46]
[1762457831711,7.933347,157.26,157.22,0.7]
[1762457832031,7.933347,157.25,157.21,7.46]
[1762457832238,7.933347,157.26,157.21,15.393347]
[1762457832610,8.633347,157.26,157.21,16.093347]
[1762457832849,7.933347,157.25,157.22,6.36051392]
[1762457833013,8.633347,157.26,157.22,6.36051392]
[1762457833330,14.99226261,157.26,157.22,6.36051392]
[1762457833629,10.48882769,157.25,157.21,21.75410447]
[1762457833834,9.78882769,157.27,157.23,7.933347]
[1762457834628,9.78882769,157.27,157.21,13.82075747]
[1762457834629,0.7,157.28,157.24,8.633347]
[1762457834832,0.7,157.28,157.25,6.35930047]
[1762457835130,0.7,157.28,157.24,6.35957116]
[1762457835337,14.99143927,157.28,157.24,6.35957116]
[1762457835518,0.7,157.28,157.24,6.35957116]
[1762457835719,8.633347,157.28,157.24,6.35957116]
[1762457836116,0.7,157.31,157.25,8.633347]
[1762457836319,9.78882769,157.3,157.25,16.093347]
[1762457836505,9.78882769,157.3,157.26,7.933347]
[1762457836906,9.78882769,157.3,157.25,8.16]
[1762457836907,0.7,157.32,157.27,14.99183876]
[1762457837307,7.05652663,157.32,157.27,14.29183876]
[1762457837503,0.7,157.32,157.27,14.29183876]
[1762457837712,7.46,157.34,157.3,7.933347]
[1762457837936,13.81566961,157.34,157.3,7.933347]
[1762457838120,8.16,157.34,157.3,7.933347]
[1762457838929,8.16,157.34,157.3,14.29030614]
[1762457839138,7.46,157.34,157.31,7.933347]
[1762457839325,9.78882769,157.35,157.31,7.933347]
[1762457839529,0.7,157.34,157.31,7.933347]
[1762457839727,10.48882769,157.35,157.31,7.933347]
[1762457839917,0.7,157.34,157.31,7.933347]
[1762457840738,0.7,157.34,157.29,7.05765217]
[1762457840928,0.7,157.34,157.3,7.933347]
[1762457841116,0.7,157.34,157.31,14.29022196]
[1762457841313,9.78882769,157.35,157.31,14.29022196]
[1762457841518,10.48882769,157.35,157.32,7.933347]
[1762457841934,10.48882769,157.35,157.31,14.29022196]
[1762457842146,0.7,157.34,157.3,14.2905265]
[1762457842342,0.7,157.34,157.3,6.3571795]
[1762457842549,0.7,157.34,157.3,14.2905265]
[1762457842862,10.45882769,157.34,157.3,14.9905265]
[1762457843043,9.78882769,157.34,157.31,14.2902201]
[1762457843347,10.45882769,157.34,157.31,6.3568731]
[1762457843747,9.78882769,157.36,157.32,8.633347]
[1762457843928,0.67,157.35,157.31,14.2902201]
[1762457844328,9.78882769,157.36,157.31,14.9902201]
[1762457844537,10.45882769,157.36,157.32,7.933347]
[1762457845234,16.81388969,157.36,157.32,14.28980858]
[1762457845435,16.14388969,157.36,157.32,14.28980858]
[1762457845650,0.67,157.35,157.31,14.99014938]
[1762457845946,0.67,157.35,157.3,6.35697698]
[1762457846153,8.603347,157.35,157.29,15.393347]
[1762457846629,0.67,157.34,157.29,15.393347]
[1762457846832,0.67,157.34,157.27,16.59534254]
[1762457846833,7.933347,157.33,157.28,6.35795596]
[1762457847027,8.13,157.34,157.25,15.89817237]
[1762457847028,9.78882769,157.3,157.25,0.7]
[1762457847234,24.07955561,157.3,157.25,7.933347]
[1762457847457,9.78882769,157.28,157.24,7.933347]
[1762457847830,10.45882769,157.28,157.24,7.933347]
[1762457848046,110.833347,157.32,157.26,7.933347]
[1762457848352,9.78882769,157.31,157.28,7.933347]
[1762457848573,18.39217469,157.31,157.26,15.393347]
[1762457848854,10.45882769,157.31,157.27,7.933347]
[1762457849148,10.45882769,157.31,157.28,14.29126673]
[1762457849356,10.45882769,157.31,157.27,14.29154884]
[1762457850052,102.9,157.32,157.28,8.633347]
[1762457850258,102.9,157.32,157.29,8.633347]
[1762457850435,17.24882769,157.33,157.29,8.633347]
[1762457850638,0.67,157.32,157.29,7.933347]
[1762457851052,8.603347,157.36,157.31,7.933347]
[1762457851245,10.45882769,157.35,157.31,14.28986835]
[1762457852058,7.46,157.36,157.32,7.933347]
[1762457852436,10.45882769,157.35,157.31,14.28986835]
[1762457853848,18.39217469,157.35,157.31,6.35652135]
[1762457854164,10.45882769,157.35,157.31,14.28986835]
[1762457854858,0.67,157.35,157.31,14.28986835]
[1762457855235,16.81411817,157.35,157.31,14.28986835]
[1762457855533,10.45882769,157.35,157.31,14.28986835]
[1762457855735,10.45882769,157.35,157.31,14.98986835]
[1762457856356,9.78882769,157.35,157.31,14.28986835]
[1762457856568,9.78882769,157.35,157.32,8.633347]
[1762457856769,9.78882769,157.35,157.31,14.28986835]
[1762457857061,9.78882769,157.35,157.31,14.98986835]
[1762457857451,7.46,157.36,157.33,7.933347]
[1762457857757,9.88882769,157.38,157.34,7.933347]
[1762457857949,0.1,157.38,157.37,14.28779829]
[1762457858458,0.1,157.38,157.37,15.00779829]
[1762457858660,0.1,157.38,157.37,35.59979829]
[1762457859962,0.1,157.44,157.37,133.25818298]
[1762457860273,0.1,157.44,157.38,0.87868716]
[1762457860568,0.1,157.44,157.43,7.933347]
[1762457860942,0.1,157.44,157.43,8.653347]
[1762457861338,0.76,157.44,157.37,22.96057952]
[1762457861649,0.1,157.44,157.4,7.933347]
[1762457862053,0.76,157.44,157.4,14.28646156]
[1762457862249,0.76,157.44,157.41,7.933347]
[1762457862440,0.1,157.44,157.42,7.933347]
[1762457862652,0.1,157.44,157.43,8.653347]
[1762457863040,0.1,157.44,157.43,16.113347]
[1762457863869,0.1,157.44,157.43,15.393347]
[1762457864046,0.1,157.44,157.43,21.74537647]
[1762457864763,0.1,157.44,157.43,22.46537647]
[1762457864971,0.1,157.44,157.4,20.592]
[1762457864972,0.1,157.44,157.42,14.28572407]
[1762457865166,0.1,157.44,157.42,7.933347]
[1762457865368,0.1,157.44,157.41,21.7460524]
[1762457865544,0.1,157.44,157.42,7.933347]
[1762457865945,0.1,157.44,157.41,21.7460524]
[1762457866165,0.1,157.44,157.37,16.7643249]
[1762457866166,0.76,157.44,157.37,16.7643249]
[1762457866478,8.693347,157.44,157.39,7.933347]
[1762457866661,0.76,157.44,157.4,7.933347]
[1762457867343,7.11164023,157.44,157.38,8.18]
[1762457867538,15.04498723,157.44,157.39,7.933347]
[1762457867739,7.11164023,157.44,157.4,7.933347]
[1762457868877,7.11164023,157.44,157.4,14.28643157]
[1762457869245,0.66,157.43,157.4,14.28643157]
[1762457869442,0.1,157.44,157.41,0.72]
[1762457869779,0.1,157.44,157.43,7.933347]
[1762457870671,0.1,157.44,157.43,14.28537647]
[1762457871171,0.1,157.44,157.43,15.00537647]
[1762457874375,0.1,157.44,157.43,22.46537647]
[1762457876282,0.1,157.44,157.43,21.74537647]
[1762457877662,0.1,157.44,157.4,7.933347]
[1762457877663,0.76,157.44,157.4,7.933347]
[1762457877867,8.693347,157.44,157.39,7.933347]
[1762457878373,0.66,157.43,157.39,14.28685889]
[1762457879364,0.1,157.44,157.42,7.933347]
[1762457879569,0.1,157.44,157.43,21.74537647]
[1762457880264,0.1,157.44,157.42,14.2856558]
[1762457881257,0.1,157.44,157.43,7.933347]
[1762457881670,0.1,157.44,157.43,14.28537647]
[1762457882193,0.1,157.44,157.43,14.98537647]
[1762457882355,0.1,157.44,157.43,12.08848822]
[1762457882985,0.1,157.44,157.43,32.83885256]
[1762457883351,0.1,157.44,157.41,28.37785011]
[1762457883352,0.1,157.44,157.42,7.46]
[1762457883576,0.76,157.44,157.41,11.3892897]
[1762457883860,0.76,157.44,157.4,28.052]
[1762457883861,0.76,157.44,157.4,18.84960461]
[1762457884477,0.76,157.44,157.41,5.03645875]
[1762457884672,0.1,157.44,157.43,5.03645875]
[1762457885080,0.1,157.44,157.43,5.73645875]
[1762457885484,0.1,157.44,157.43,5.89482309]
[1762457886081,0.1,157.44,157.43,12.24685256]
[1762457886478,0.1,157.5,157.46,20.592]
[1762457886682,0.1,157.5,157.49,5.03645875]
[1762457886869,0.1,157.5,157.49,12.49645875]
[1762457887066,0.1,157.5,157.49,13.19645875]
[1762457887290,0.05198,157.51,157.49,68.2329175]
[1762457887493,0.1,157.57,157.53,20.592]
[1762457887692,0.1,157.57,157.53,28.9093563]
[1762457887940,0.1,157.57,157.53,33.94581505]
[1762457888073,0.1,157.57,157.53,40.29381225]
[1762457888976,1e-08,157.54,157.53,40.29381225]
[1762457893197,0.1,157.57,157.54,50.0]
[1762457893496,0.1,157.57,157.56,25.62845875]
[1762457894196,0.1,157.57,157.56,31.97524727]
[1762457894398,0.1,157.57,157.56,25.62845875]
[1762457894699,0.1,157.57,157.56,12.49645875]
[1762457894700,0.76,157.57,157.56,12.49645875]
[1762457895280,0.1,157.57,157.56,12.49645875]
[1762457895881,0.76,157.57,157.56,7.46]
[1762457896089,0.76,157.57,157.55,5.03645875]
[1762457896287,0.76,157.57,157.55,11.38347178]
[1762457896487,0.1,157.57,157.54,13.80757474]
[1762457896684,9.78882769,157.56,157.53,31.97633559]
[1762457896887,5.03645875,157.55,157.5,18.84556951]
[1762457897087,9.78882769,157.52,157.48,12.49645875]
[1762457897490,0.66,157.54,157.48,12.49645875]
[1762457897491,0.66,157.51,157.5,5.03645875]
[1762457897988,0.66,157.51,157.49,5.03645875]
[1762457898588,0.66,157.51,157.48,12.49645875]
[1762457898796,11.38458111,157.53,157.49,5.03645875]
[1762457898986,9.78882769,157.52,157.49,5.03645875]
[1762457899305,9.78882769,157.54,157.51,5.03645875]
[1762457899725,0.66,157.54,157.52,5.03645875]
[1762457899922,9.78882769,157.55,157.53,5.03645875]
[1762457900224,0.66,157.54,157.52,5.03645875]
[1762457900514,0.66,157.54,157.51,5.03645875]
[1762457900716,0.66,157.54,157.51,11.38524795]
[1762457901017,10.44882769,157.56,157.53,5.03645875]
[1762457901204,0.66,157.55,157.53,5.03645875]
[1762457901382,0.66,157.55,157.52,5.03645875]
[1762457902400,0.66,157.55,157.51,5.03645875]
[1762457902795,12.04366963,157.55,157.5,18.84555213]
[1762457903181,0.69,157.54,157.5,18.84555213]
[1762457903601,0.69,157.54,157.51,5.03645875]
[1762457904711,0.69,157.54,157.51,11.38512806]
[1762457905423,7.03760209,157.54,157.51,5.03645875]
[1762457905582,9.78882769,157.53,157.49,5.03645875]
[1762457905784,9.78882769,157.53,157.5,5.03645875]
[1762457906008,0.69,157.53,157.5,5.03645875]
[1762457906201,9.78882769,157.55,157.51,5.03645875]
[1762457906508,0.69,157.54,157.51,5.03645875]
[1762457906717,0.69,157.54,157.51,11.38515934]
[1762457907524,14.82528644,157.52,157.47,11.38680028]
[1762457907735,14.82528644,157.52,157.47,12.49645875]
[1762457907910,14.82528644,157.52,157.44,12.49645875]